bitfinex/quotes_BTCUSD_20250908
["timestamp","ask_amount","ask_price","bid_price","bid_amount"]
[1757340451990,0.18053526,112110.0,112100.0,0.87820653]
[1757340452219,0.18053526,112110.0,112100.0,1.05661866]
[1757340452442,0.18053526,112110.0,112100.0,1.13670733]
[1757340452665,0.18053526,112110.0,112100.0,0.9582952]
[1757340452891,0.18249526,112110.0,112100.0,1.13670733]
[1757340453148,0.18053526,112110.0,112100.0,1.13670733]
[1757340454248,0.18053526,112110.0,112100.0,0.87350733]
[1757340454474,0.18053526,112110.0,112100.0,0.6950952]
[1757340454744,0.18053526,112110.0,112100.0,0.87350733]
[1757340455168,0.00213905,112110.0,112100.0,0.87350733]
[1757340455377,0.18053526,112110.0,112100.0,0.87643733]
[1757340456039,0.18053526,112110.0,112100.0,5.87643733]
[1757340457103,0.00213905,112110.0,112100.0,5.87643733]
[1757340457284,0.00213905,112110.0,112100.0,5.89737615]
[1757340457554,0.00213905,112110.0,112100.0,5.81728748]
[1757340460135,0.00213905,112110.0,112100.0,6.08048748]
[1757340460319,0.00043788,112110.0,112100.0,6.08048748]
[1757340460519,0.00043788,112110.0,112100.0,6.21687408]
[1757340461315,0.1787803,112120.0,112110.0,0.88933503]
[1757340461538,0.0004,112120.0,112110.0,6.22009654]
[1757340462167,0.0004,112120.0,112110.0,6.24685479]
[1757340463344,0.0014,112120.0,112110.0,6.24685479]
[1757340463836,0.0014,112120.0,112110.0,6.16682927]
[1757340464289,0.0014,112120.0,112110.0,6.44681134]
[1757340464508,0.0014,112120.0,112110.0,6.36682927]
[1757340464980,0.0014,112120.0,112110.0,6.47847587]
[1757340465408,0.0014,112120.0,112110.0,6.36682927]
[1757340465914,0.0014,112120.0,112110.0,6.63002927]
[1757340468123,0.0014,112120.0,112110.0,6.70998215]
[1757340468332,0.0014,112120.0,112110.0,6.70709215]
[1757340468727,0.0014,112120.0,112110.0,1.70709215]
[1757340468907,0.0014,112120.0,112110.0,6.71002215]
[1757340469112,0.0014,112120.0,112110.0,1.70709215]
[1757340469482,0.0014,112120.0,112110.0,1.50709215]
[1757340471967,0.1850203,112120.0,112110.0,0.68862712]
[1757340472185,0.1850203,112120.0,112110.0,0.84242712]
[1757340472391,0.1850203,112120.0,112110.0,0.91086712]
[1757340472814,0.54569877,112120.0,112110.0,0.26706712]
[1757340473043,0.54569877,112120.0,112110.0,0.34091424]
[1757340473258,0.54569877,112120.0,112110.0,0.71818544]
[1757340475652,0.54569877,112120.0,112110.0,0.56438544]
[1757340475782,0.54569877,112120.0,112110.0,0.71802544]
[1757340476776,0.1850203,112120.0,112110.0,0.71802544]
[1757340483958,0.1797803,112120.0,112110.0,0.8344022]
[1757340484549,0.1819403,112120.0,112110.0,0.86116349]
[1757340485132,0.1850203,112120.0,112110.0,0.68075728]
[1757340485341,0.1850203,112120.0,112110.0,0.86116349]
[1757340485541,0.1797803,112120.0,112110.0,0.86116349]
[1757340485890,0.1797803,112120.0,112110.0,0.94111637]
[1757340486712,0.1797803,112120.0,112110.0,1.15511637]
[1757340487524,0.0014,112120.0,112110.0,1.15511637]
[1757340487736,0.0014,112120.0,112110.0,1.15809637]
[1757340489581,0.0014,112120.0,112110.0,1.17903519]
[1757340489791,0.0014,112120.0,112110.0,1.44223519]
[1757340490007,0.001,112120.0,112110.0,1.44223519]
[1757340490248,0.00029625,112120.0,112110.0,6.36228231]
[1757340490434,0.00029625,112120.0,112110.0,6.47392891]
[1757340490865,0.00029625,112120.0,112110.0,6.49661891]
[1757340494385,0.00029625,112120.0,112110.0,6.32028891]
[1757340494598,0.00029625,112120.0,112110.0,6.47388891]
[1757340496491,0.00029625,112120.0,112110.0,6.47090891]
[1757340496700,0.00029625,112120.0,112110.0,6.47388891]
[1757340497312,0.00029625,112120.0,112110.0,6.47090891]
[1757340497753,0.00029625,112120.0,112110.0,6.47388891]
[1757340499810,0.00029625,112120.0,112110.0,6.49657891]
[1757340500021,6.277e-05,112120.0,112110.0,6.49657891]
[1757340500235,6.277e-05,112120.0,112110.0,6.69657891]
[1757340505472,6.277e-05,112120.0,112110.0,6.52028891]
[1757340505674,6.277e-05,112120.0,112110.0,6.51730891]
[1757340505877,6.277e-05,112120.0,112110.0,6.67086891]
[1757340506088,6.277e-05,112120.0,112110.0,6.67398891]
[1757340506290,6.277e-05,112120.0,112110.0,1.47086891]
[1757340506505,0.18044307,112120.0,112110.0,1.20566231]
[1757340506759,0.18348307,112120.0,112110.0,1.15787728]
[1757340506940,0.18348307,112120.0,112110.0,1.33627349]
[1757340507606,0.90484001,112120.0,112110.0,0.37797403]
[1757340507818,0.54416154,112120.0,112110.0,0.37797403]
[1757340508249,0.54416154,112120.0,112110.0,0.71797403]
[1757340511937,0.00510277,112120.0,112110.0,0.71797403]
[1757340512186,0.00484996,112120.0,112110.0,0.8344622]
[1757340512413,0.18627026,112120.0,112110.0,0.8344622]
[1757340512619,0.17844307,112120.0,112110.0,0.91452522]
[1757340512826,0.18123026,112120.0,112110.0,0.91452522]
[1757340513035,0.18123026,112120.0,112110.0,1.12848522]
[1757340513251,0.18323026,112120.0,112110.0,1.12848522]
[1757340513434,0.18627026,112120.0,112110.0,0.94793901]
[1757340513681,0.18348307,112120.0,112110.0,0.79437901]
[1757340513904,0.18348307,112120.0,112110.0,0.86783599]
[1757340514154,0.18348307,112120.0,112110.0,0.71431599]
[1757340514420,0.18348307,112120.0,112110.0,0.86783599]
[1757340514676,0.18348307,112120.0,112110.0,0.71431599]
[1757340514907,0.18348307,112120.0,112110.0,0.86783599]
[1757340517930,0.18348307,112120.0,112110.0,0.9318863]
[1757340518798,0.18348307,112120.0,112110.0,1.11028251]
[1757340519007,0.18348307,112120.0,112110.0,0.9318863]
[1757340519156,0.18348307,112120.0,112110.0,1.11028251]
[1757340519573,0.18348307,112120.0,112110.0,0.9318863]
[1757340523820,0.18348307,112120.0,112110.0,0.7783663]
[1757340524003,0.18348307,112120.0,112110.0,0.9318463]
[1757340524660,0.18348307,112120.0,112110.0,0.86779599]
[1757340525931,0.18348307,112120.0,112110.0,0.71431599]
[1757340526127,0.54416154,112120.0,112110.0,0.6224]
[1757340526346,0.54416154,112120.0,112110.0,0.77588]
[1757340526347,0.18348307,112120.0,112110.0,0.77588]
[1757340526555,0.54416154,112120.0,112110.0,0.77588]
[1757340527015,0.18348307,112120.0,112110.0,0.77588]
[1757340527550,0.18448307,112120.0,112110.0,0.77588]
[1757340527942,0.1844203,112120.0,112110.0,0.77588]
[1757340528156,0.1834203,112120.0,112110.0,0.77588]
[1757340528765,0.1854203,112120.0,112110.0,0.77588]
[1757340529335,0.1884203,112120.0,112110.0,0.86779599]
[1757340530540,0.1884203,112120.0,112110.0,1.0461922]
[1757340530785,0.1884203,112120.0,112110.0,0.86779599]
[1757340531697,0.1884203,112120.0,112110.0,1.0461922]
[1757340532283,0.1884203,112120.0,112110.0,0.86779599]
[1757340538733,0.1884203,112120.0,112110.0,1.0461922]
[1757340539266,0.007,112120.0,112110.0,1.0482522]
[1757340539472,0.01292719,112120.0,112110.0,1.0461922]
[1757340539694,0.00778719,112120.0,112110.0,1.0512422]
[1757340540292,0.005,112120.0,112110.0,6.0512422]
[1757340540496,0.005,112120.0,112110.0,6.29687102]
[1757340540695,0.005,112120.0,112110.0,6.32362822]
[1757340541106,0.006,112120.0,112110.0,6.32362822]
[1757340541515,0.004,112120.0,112110.0,6.32362822]
[1757340542202,0.005,112120.0,112110.0,6.32362822]
[1757340542376,0.005,112120.0,112110.0,6.32354822]
[1757340542760,0.001,112120.0,112110.0,6.32354822]
[1757340542957,0.0004,112130.0,112120.0,0.34931912]
[1757340543161,0.0004,112130.0,112120.0,0.59463511]
[1757340543407,0.0004,112130.0,112120.0,0.59968511]
[1757340544576,0.0004,112130.0,112120.0,0.62644145]
[1757340545835,0.0004,112130.0,112120.0,0.66574275]
[1757340546132,0.0014,112130.0,112120.0,0.92894275]
[1757340547099,0.0014,112130.0,112120.0,5.86574275]
[1757340547274,0.0014,112130.0,112120.0,6.23043275]
[1757340547477,0.0014,112130.0,112120.0,6.49363275]
[1757340548713,0.0004,112130.0,112120.0,6.49363275]
[1757340549163,0.0004,112130.0,112120.0,6.49463275]
[1757340550782,0.0004,112130.0,112120.0,6.54463275]
[1757340551354,0.0004,112130.0,112120.0,6.39123275]
[1757340551564,0.0004,112130.0,112120.0,6.54455275]
[1757340551930,0.0004,112130.0,112120.0,6.54355275]
[1757340552526,0.0004,112130.0,112120.0,6.54555275]
[1757340553166,0.0004,112130.0,112120.0,6.39223275]
[1757340553303,0.0004,112130.0,112120.0,6.54655275]
[1757340554169,0.0004,112130.0,112120.0,6.49651275]
[1757340557053,0.0004,112130.0,112120.0,6.34323275]
[1757340557251,0.0004,112130.0,112120.0,6.49647275]
[1757340558213,0.0004,112130.0,112120.0,6.34323275]
[1757340558420,0.0004,112130.0,112120.0,6.49647275]
[1757340560380,8.731e-05,112130.0,112120.0,6.60811647]
[1757340560990,8.731e-05,112130.0,112120.0,6.34491647]
[1757340562970,0.00013364,112130.0,112120.0,6.34491647]
[1757340565740,0.00013364,112130.0,112120.0,6.39491647]
[1757340566173,0.00013364,112130.0,112120.0,6.28327275]
[1757340566773,0.00013364,112130.0,112120.0,6.54647275]
[1757340567564,2.918e-05,112130.0,112120.0,6.54647275]
[1757340567764,2.918e-05,112130.0,112120.0,6.59647275]
[1757340568553,2.918e-05,112130.0,112120.0,6.75596378]
[1757340569421,2.918e-05,112130.0,112120.0,6.59647275]
[1757340570235,2.918e-05,112130.0,112120.0,6.75596378]
[1757340570450,0.0004,112160.0,112150.0,0.74927141]
[1757340570608,0.0003839,112160.0,112150.0,6.40594392]
[1757340570805,0.0003839,112160.0,112150.0,6.75120392]
[1757340571091,0.0003839,112160.0,112150.0,6.78320253]
[1757340571272,0.0003839,112160.0,112150.0,6.80724253]
[1757340571483,0.0003839,112160.0,112150.0,6.83399005]
[1757340572225,0.0013839,112160.0,112150.0,6.83399005]
[1757340574399,0.0023839,112160.0,112150.0,6.83399005]
[1757340574869,0.0013839,112160.0,112150.0,6.83399005]
[1757340575083,0.0013839,112160.0,112150.0,6.87399893]
[1757340575298,0.0013839,112160.0,112150.0,6.88254209]
[1757340576584,0.0013839,112160.0,112150.0,6.72942209]
[1757340576820,0.0013839,112160.0,112150.0,6.88250209]
[1757340577679,0.00030223,112160.0,112150.0,6.77050696]
[1757340578525,0.00030223,112160.0,112150.0,6.61742696]
[1757340578767,0.00030223,112160.0,112150.0,6.88247853]
[1757340578982,0.0004,112170.0,112160.0,0.51831669]
[1757340579192,0.0004,112170.0,112160.0,5.97715268]
[1757340579397,0.0004,112170.0,112160.0,5.98241268]
[1757340580046,0.0004,112170.0,112160.0,5.82937268]
[1757340580254,0.0004,112170.0,112160.0,6.00915638]
[1757340580461,0.0004,112170.0,112160.0,6.08911577]
[1757340580693,0.0004,112170.0,112160.0,6.00915638]
[1757340581366,0.0004,112170.0,112160.0,6.08911592]
[1757340581776,0.0004,112170.0,112160.0,6.35231592]
[1757340582198,0.0004,112170.0,112160.0,6.35227592]
[1757340583456,0.0004,112170.0,112160.0,6.19604592]
[1757340583694,0.18381079,112170.0,112160.0,6.21569923]
[1757340583919,0.18381079,112170.0,112160.0,1.19969707]
[1757340584132,0.18381079,112170.0,112160.0,1.35269707]
[1757340584577,0.18381079,112170.0,112160.0,1.53101376]
[1757340584983,0.18077079,112170.0,112160.0,1.53304376]
[1757340585199,0.00247,112170.0,112160.0,1.53304376]
[1757340585701,0.18481079,112170.0,112160.0,1.53304376]
[1757340585918,0.18481079,112170.0,112160.0,1.35269707]
[1757340586806,0.18481079,112170.0,112150.0,0.0885027]
[1757340586807,0.17831669,112160.0,112150.0,0.0885027]
[1757340587034,0.17831669,112160.0,112130.0,0.06844]
[1757340587035,0.17834849,112140.0,112130.0,0.06844]
[1757340587252,0.90780468,112140.0,112130.0,0.2214]
[1757340587479,0.17836439,112130.0,112120.0,0.21384]
[1757340587732,0.54425414,112130.0,112120.0,0.28228]
[1757340587938,0.18347439,112130.0,112120.0,0.06848633]
[1757340588153,0.54425414,112130.0,112120.0,0.06848633]
[1757340588616,0.18347439,112130.0,112120.0,0.22144633]
[1757340588820,0.57602389,112130.0,112120.0,0.22144633]
[1757340589269,0.5594204,112130.0,112120.0,0.22144633]
[1757340590008,0.18347439,112130.0,112120.0,0.22144633]
[1757340590211,0.5664204,112130.0,112120.0,0.22144633]
[1757340590844,0.5634204,112130.0,112120.0,0.22144633]
[1757340591248,0.5664204,112130.0,112120.0,0.22144633]
[1757340591678,0.19047439,112130.0,112120.0,0.22144633]
[1757340591883,0.5664204,112130.0,112120.0,0.22144633]
[1757340592097,0.19047439,112130.0,112120.0,0.22144633]
[1757340594304,0.18747439,112130.0,112120.0,0.23037666]
[1757340594909,0.19047439,112130.0,112120.0,0.23037666]
[1757340595146,0.19047439,112130.0,112120.0,0.50067295]
[1757340595386,0.19047439,112130.0,112120.0,0.32432265]
[1757340595608,0.19047439,112130.0,112120.0,0.32229265]
[1757340596044,0.18647439,112130.0,112120.0,0.32229265]
[1757340596503,0.18947439,112130.0,112120.0,0.32229265]
[1757340596984,0.18647439,112130.0,112120.0,0.32229265]
[1757340597842,0.18547439,112130.0,112120.0,0.32229265]
[1757340598472,0.18236439,112130.0,112120.0,0.84270295]
[1757340598684,0.18236439,112130.0,112120.0,0.66432265]
[1757340598883,0.18447439,112130.0,112120.0,0.66432265]
[1757340599120,0.18769439,112130.0,112120.0,0.66432265]
[1757340599555,0.18769439,112130.0,112120.0,0.66229265]
[1757340600397,0.18769439,112130.0,112120.0,0.84067295]
[1757340601453,0.00933,112130.0,112120.0,0.84270295]
[1757340601674,0.004,112130.0,112120.0,0.84270295]
[1757340601901,0.004,112130.0,112120.0,5.86665177]
[1757340602305,0.004,112130.0,112120.0,5.88993177]
[1757340602945,0.004,112130.0,112120.0,5.73697177]
[1757340603157,0.004,112130.0,112120.0,5.88993177]
[1757340603383,0.002,112130.0,112120.0,5.88993177]
[1757340604035,0.003,112130.0,112120.0,5.88993177]
[1757340604378,0.002,112130.0,112120.0,5.88993177]
[1757340604586,0.17831751,112160.0,112150.0,0.2]
[1757340604788,0.17831751,112160.0,112150.0,0.90759858]
[1757340604789,0.1832137,112160.0,112150.0,0.90759858]
[1757340604990,0.18042669,112160.0,112150.0,0.72926599]
[1757340605390,0.00211,112160.0,112150.0,0.90759858]
[1757340605601,0.19083582,112170.0,112150.0,0.90759858]
[1757340605803,0.0004,112170.0,112160.0,0.27023268]
[1757340606155,0.0004,112170.0,112160.0,0.61226268]
[1757340606380,0.17870079,112170.0,112160.0,0.61226268]
[1757340606581,0.17870079,112170.0,112160.0,0.76518268]
[1757340606789,0.18148673,112170.0,112160.0,0.76518268]
[1757340607268,0.0004,112170.0,112160.0,0.76518268]
[1757340607482,0.17870079,112170.0,112160.0,0.76518268]
[1757340607712,0.18148673,112170.0,112160.0,0.76518268]
[1757340607925,0.00318594,112170.0,112160.0,0.76514268]
[1757340608079,0.0004,112170.0,112160.0,0.76514268]
[1757340608515,0.17870079,112170.0,112160.0,0.76514268]
[1757340608700,0.18070079,112170.0,112160.0,0.61226268]
[1757340609081,0.18270079,112170.0,112160.0,0.76514268]
[1757340609629,0.18270079,112170.0,112160.0,0.58682599]
[1757340609860,0.18281079,112170.0,112160.0,0.76514268]
[1757340610068,0.18281079,112170.0,112160.0,0.43394599]
[1757340610273,0.18281079,112170.0,112160.0,0.58682599]
[1757340610478,0.18181079,112170.0,112160.0,0.43394599]
[1757340610642,0.18181079,112170.0,112160.0,0.58682599]
[1757340611239,0.18281079,112170.0,112160.0,0.58682599]
[1757340611503,0.18603079,112170.0,112160.0,0.58682599]
[1757340612229,0.18603079,112170.0,112160.0,0.43394599]
[1757340612440,0.0024,112170.0,112160.0,6.1390515]
[1757340612873,0.0024,112170.0,112160.0,6.16579785]
[1757340613502,0.0024,112170.0,112160.0,6.01295785]
[1757340613733,0.0024,112170.0,112160.0,6.16579785]
[1757340613918,0.0024,112170.0,112160.0,6.01295785]
[1757340614145,0.0024,112170.0,112160.0,6.16579785]
[1757340615493,0.0024,112170.0,112160.0,6.42899785]
[1757340615703,0.0024,112170.0,112160.0,6.45227785]
[1757340616831,0.0014,112170.0,112160.0,6.45227785]
[1757340617052,0.0014,112170.0,112160.0,6.29943785]
[1757340617267,0.0014,112170.0,112160.0,6.45223785]
[1757340617884,0.0014,112170.0,112160.0,6.43129903]
[1757340618083,0.0004,112170.0,112160.0,6.45223785]
[1757340618723,0.0004,112170.0,112160.0,6.45323785]
[1757340619361,0.0004,112170.0,112160.0,6.45319785]
[1757340620635,0.0004,112170.0,112160.0,6.45419785]
[1757340621490,0.0004,112170.0,112160.0,6.45319785]
[1757340622560,0.0004,112170.0,112160.0,6.30143785]
[1757340622779,0.0004,112170.0,112160.0,6.45419785]
[1757340623281,0.0004,112170.0,112160.0,6.30143785]
[1757340623527,0.0004,112170.0,112160.0,6.45419785]
[1757340625587,0.0004,112170.0,112160.0,6.45415785]
[1757340625833,0.0004,112170.0,112160.0,6.30143785]
[1757340626094,0.0004,112170.0,112160.0,6.45415785]
[1757340627270,0.0004,112170.0,112160.0,6.43083785]
[1757340627760,0.0004,112170.0,112160.0,6.45437785]
[1757340633838,0.0004,112170.0,112160.0,6.50437785]
[1757340634051,0.0004,112170.0,112160.0,6.58397989]
[1757340634291,0.0004,112170.0,112160.0,6.44969989]
[1757340634543,0.0004,112170.0,112160.0,6.60233989]
[1757340634745,0.0004,112170.0,112160.0,6.52273785]
[1757340639849,0.0004,112170.0,112160.0,6.60233989]
[1757340640273,0.0004,112170.0,112160.0,6.44969989]
[1757340640485,0.0004,112170.0,112160.0,6.60229989]
[1757340645266,0.0004,112170.0,112160.0,6.52269785]
[1757340646254,0.0004,112170.0,112160.0,6.63403468]
[1757340649235,9.862e-05,112170.0,112160.0,6.63403468]
[1757340649831,9.862e-05,112170.0,112160.0,6.52269785]
[1757340650428,2.433e-05,112170.0,112160.0,6.52269785]
[1757340651601,2.433e-05,112170.0,112160.0,6.52261785]
[1757340654004,2.433e-05,112170.0,112160.0,6.37009785]
[1757340654218,2.433e-05,112170.0,112160.0,6.52261785]
[1757340654433,2.433e-05,112170.0,112160.0,6.37009785]
[1757340654650,2.433e-05,112170.0,112160.0,6.52257785]
[1757340655151,2.433e-05,112170.0,112160.0,6.37009785]
[1757340655550,2.433e-05,112170.0,112160.0,6.52257785]
[1757340655908,2.433e-05,112170.0,112160.0,6.68206888]
[1757340657523,2.433e-05,112170.0,112160.0,6.88206888]
[1757340657745,0.07101212,112200.0,112190.0,0.55]
[1757340657962,0.00086335,112200.0,112190.0,6.45200381]
[1757340658164,0.00086335,112200.0,112190.0,6.45412381]
[1757340658375,0.07101212,112220.0,112210.0,1.06823723]
[1757340658586,0.07101212,112220.0,112210.0,6.63843615]
[1757340658587,0.07115109,112220.0,112210.0,6.63843615]
[1757340658801,0.07115109,112220.0,112210.0,6.49110615]
[1757340659012,0.07115109,112220.0,112210.0,6.67031712]
[1757340659229,0.0160842,112220.0,112210.0,6.55854232]
[1757340659451,0.0160842,112220.0,112210.0,6.52648824]
[1757340659663,0.00013897,112220.0,112210.0,6.59897939]
[1757340659886,0.00113897,112220.0,112210.0,6.59897939]
[1757340660089,0.00013897,112220.0,112210.0,6.44653939]
[1757340660307,0.00013897,112220.0,112210.0,6.68411811]
[1757340661196,0.00013897,112220.0,112210.0,6.52864811]
[1757340661412,0.00013897,112220.0,112210.0,6.65435714]
[1757340661661,0.00113897,112220.0,112210.0,6.50494714]
[1757340661878,0.00113897,112220.0,112210.0,6.72275714]
[1757340662779,0.00113897,112220.0,112210.0,6.72578714]
[1757340663838,0.00113897,112220.0,112210.0,6.57334714]
[1757340664069,0.00607897,112220.0,112210.0,6.72063714]
[1757340664320,0.00113897,112220.0,112210.0,6.72275714]
[1757340664931,0.00113897,112220.0,112210.0,6.98595714]
[1757340665356,0.00113897,112220.0,112210.0,6.98898714]
[1757340665777,0.00113897,112220.0,112210.0,6.98894714]
[1757340666644,0.00113897,112220.0,112210.0,6.83654714]
[1757340667070,0.00113897,112220.0,112210.0,6.98591714]
[1757340667537,0.00113897,112220.0,112210.0,6.9059698]
[1757340667748,0.00113897,112220.0,112210.0,6.7535698]
[1757340668202,0.00113897,112220.0,112210.0,6.9059698]
[1757340668421,0.00113897,112220.0,112210.0,6.7535698]
[1757340668641,0.00113897,112220.0,112210.0,6.9059298]
[1757340669316,0.18430032,112220.0,112210.0,6.27409873]
[1757340669527,0.00607897,112220.0,112210.0,6.60469596]
[1757340669742,0.00607897,112220.0,112210.0,6.60681596]
[1757340669946,0.18430032,112220.0,112210.0,6.60681596]
[1757340670158,0.00607897,112220.0,112210.0,6.52686862]
[1757340670358,0.18430032,112220.0,112210.0,6.33168342]
[1757340670583,0.18430032,112220.0,112210.0,1.54789489]
[1757340671004,0.18430032,112220.0,112210.0,1.55001489]
[1757340671213,0.00607897,112220.0,112210.0,1.55001489]
[1757340671424,0.18430032,112220.0,112210.0,1.33380342]
[1757340671630,0.18430032,112220.0,112210.0,1.48616342]
[1757340671879,0.18430032,112220.0,112210.0,1.55001809]
[1757340672091,0.00607897,112220.0,112210.0,1.55001809]
[1757340672323,0.18430032,112220.0,112210.0,1.55001809]
[1757340672567,0.18430032,112220.0,112210.0,0.44316204]
[1757340672775,0.76790493,112220.0,112210.0,0.52647599]
[1757340673456,0.18430032,112220.0,112210.0,0.52647599]
[1757340673679,0.18330032,112220.0,112210.0,0.52647599]
[1757340674134,0.18630032,112220.0,112210.0,0.52647599]
[1757340674787,0.18630032,112220.0,112210.0,0.5316428]
[1757340676817,0.18730032,112220.0,112210.0,0.5316428]
[1757340677396,0.18730032,112220.0,112210.0,0.3792828]
[1757340677611,0.18730032,112220.0,112210.0,0.5316028]
[1757340679109,0.18730032,112220.0,112210.0,0.3792828]
[1757340679322,0.18730032,112220.0,112210.0,0.5316028]
[1757340680180,0.18730032,112220.0,112210.0,0.3792828]
[1757340680422,0.18730032,112220.0,112210.0,0.5316028]
[1757340680863,0.77090493,112220.0,112210.0,0.2822]
[1757340681093,0.77090493,112220.0,112210.0,0.43452]
[1757340681737,0.18730032,112220.0,112210.0,0.43970056]
[1757340682171,0.18730032,112220.0,112210.0,0.53161655]
[1757340682837,0.18730032,112220.0,112210.0,0.70985378]
[1757340683323,0.18730032,112220.0,112210.0,0.53161655]
[1757340683980,0.18730032,112220.0,112210.0,0.70985378]
[1757340684191,0.00907897,112220.0,112210.0,1.33661727]
[1757340684650,0.00907897,112220.0,112210.0,1.33464727]
[1757340685114,0.18730032,112220.0,112210.0,1.33464727]
[1757340685352,0.00907897,112220.0,112210.0,1.33464727]
[1757340686215,0.18730032,112220.0,112210.0,1.15641004]
[1757340686461,0.18730032,112220.0,112210.0,1.33464727]
[1757340686695,0.18730032,112220.0,112210.0,1.18232727]
[1757340686915,0.00907897,112220.0,112210.0,1.18232727]
[1757340687146,0.18730032,112220.0,112210.0,1.18232727]
[1757340687393,0.18730032,112220.0,112210.0,1.33460727]
[1757340687617,0.18730032,112220.0,112210.0,1.13543122]
[1757340687848,0.18730032,112220.0,112210.0,1.31366845]
[1757340688367,0.00907897,112220.0,112210.0,1.31563845]
[1757340688832,0.00610897,112220.0,112210.0,1.31563845]
[1757340689039,0.00413897,112220.0,112210.0,1.31563845]
[1757340689285,0.00413897,112220.0,112210.0,1.33657727]
[1757340689530,0.00609897,112220.0,112210.0,1.33657727]
[1757340689744,0.00914897,112220.0,112210.0,1.33460727]
[1757340690166,0.00914897,112220.0,112210.0,1.33657727]
[1757340690573,0.00874897,112220.0,112210.0,1.33657727]
[1757340690823,0.00373897,112220.0,112210.0,1.33657727]
[1757340692016,0.00569897,112220.0,112210.0,1.33657727]
[1757340692231,0.00373897,112220.0,112210.0,1.33657727]
[1757340692446,0.00373897,112220.0,112210.0,1.6859226]
[1757340692664,0.00373897,112220.0,112210.0,1.5336426]
[1757340692884,0.00601,112220.0,112210.0,1.76389994]
[1757340693112,0.001,112220.0,112210.0,1.76586994]
[1757340693344,0.003,112220.0,112210.0,1.76586994]
[1757340694260,0.003,112220.0,112210.0,1.96586994]
[1757340694489,0.003,112220.0,112210.0,6.70583994]
[1757340694674,0.002,112220.0,112210.0,6.70583994]
[1757340694940,0.00345,112240.0,112230.0,0.73914429]
[1757340695156,0.00345,112240.0,112230.0,1.04729093]
[1757340695398,0.0004,112240.0,112230.0,1.19926093]
[1757340695611,0.18359959,112240.0,112230.0,1.19725093]
[1757340696303,0.18359959,112240.0,112230.0,1.04501093]
[1757340696522,0.00641,112240.0,112230.0,1.19725093]
[1757340696967,0.18459959,112240.0,112230.0,1.19725093]
[1757340697901,0.00641,112240.0,112230.0,1.19725093]
[1757340698752,0.00741,112240.0,112230.0,1.19725093]
[1757340699471,0.18559959,112240.0,112230.0,1.19725093]
[1757340699680,0.18559959,112240.0,112230.0,0.86680546]
[1757340699938,0.18559959,112240.0,112230.0,1.01904546]
[1757340700153,0.18559959,112240.0,112230.0,1.19725093]
[1757340700370,0.18559959,112240.0,112230.0,0.79810664]
[1757340701853,0.76937589,112240.0,112230.0,0.06395065]
[1757340702077,0.17820547,112230.0,112220.0,0.06395065]
[1757340702326,0.76781623,112230.0,112220.0,0.24411599]
[1757340702544,0.76699177,112230.0,112220.0,0.24411599]
[1757340702761,0.18321547,112230.0,112220.0,0.24411599]
[1757340703866,0.18321547,112230.0,112220.0,0.24511599]
[1757340704615,0.18321547,112230.0,112220.0,0.24411599]
[1757340705886,0.18321547,112230.0,112220.0,0.09191599]
[1757340706094,0.18421547,112230.0,112220.0,0.24411599]
[1757340707474,0.18421547,112230.0,112220.0,0.24511599]
[1757340709924,0.18421547,112230.0,112220.0,0.1532]
[1757340710588,0.54436825,112230.0,112220.0,0.1532]
[1757340711047,0.54436825,112230.0,112220.0,0.001]
[1757340711520,0.54436825,112230.0,112220.0,0.1532]
[1757340713085,0.54436825,112230.0,112220.0,0.001]
[1757340713289,0.54436825,112230.0,112220.0,0.1532]
[1757340713495,0.54436825,112230.0,112220.0,0.001]
[1757340713701,0.54436825,112230.0,112220.0,0.15316]
[1757340713881,0.54436825,112230.0,112220.0,0.001]
[1757340714143,0.54436825,112230.0,112220.0,0.15316]
[1757340715249,0.18421547,112230.0,112220.0,0.15316]
[1757340715510,0.18421547,112230.0,112220.0,0.24507599]
[1757340715987,0.18421547,112230.0,112220.0,0.44507599]
[1757340717969,0.54436825,112230.0,112220.0,0.44507599]
[1757340720208,0.18421547,112230.0,112220.0,0.44507599]
[1757340720408,0.54436825,112230.0,112220.0,0.29291599]
[1757340720612,0.99643702,112230.0,112220.0,0.001]
[1757340720828,0.99643702,112230.0,112210.0,0.0684]
[1757340720829,0.17822135,112220.0,112210.0,0.0684]
[1757340721027,0.17825311,112200.0,112180.0,0.27775065]
[1757340721228,0.54614723,112190.0,112180.0,0.36966664]
[1757340721398,0.54336178,112190.0,112180.0,0.52669934]
[1757340721637,0.54336178,112190.0,112180.0,0.43478335]
[1757340721888,0.54336178,112190.0,112180.0,0.22098335]
[1757340721889,1.08734654,112190.0,112180.0,0.22098335]
[1757340722127,0.99543055,112190.0,112180.0,0.22098335]
[1757340722347,1.02218386,112190.0,112180.0,0.22098335]
[1757340724196,1.02318386,112190.0,112180.0,0.22098335]
[1757340724417,0.67738266,112190.0,112180.0,0.22098335]
[1757340724848,0.58946667,112190.0,112180.0,0.22098335]
[1757340725494,0.21596231,112190.0,112180.0,0.22098335]
[1757340725706,0.59146667,112190.0,112180.0,0.22098335]
[1757340726551,0.21596231,112190.0,112180.0,0.22098335]
[1757340726760,0.59146667,112190.0,112180.0,0.22098335]
[1757340727189,0.21596231,112190.0,112180.0,0.22098335]
[1757340727413,0.59146667,112190.0,112180.0,0.22098335]
[1757340727638,0.21596231,112190.0,112180.0,0.22098335]
[1757340727888,0.189209,112190.0,112180.0,0.22098335]
[1757340729705,0.189209,112190.0,112180.0,0.69118423]
[1757340729919,0.189209,112190.0,112180.0,0.51289934]
[1757340730366,0.189209,112190.0,112180.0,0.69118423]
[1757340730581,0.189209,112190.0,112180.0,0.51289934]
[1757340735089,0.189209,112190.0,112180.0,0.06886335]
[1757340735310,0.56471336,112190.0,112180.0,0.06886335]
[1757340735534,0.56471336,112190.0,112180.0,0.22098335]
[1757340735751,0.59146498,112190.0,112180.0,0.22098335]
[1757340736933,0.21596062,112190.0,112180.0,0.22098335]
[1757340737406,0.189209,112190.0,112180.0,0.22098335]
[1757340738793,0.189209,112190.0,112180.0,0.39926824]
[1757340739012,0.189209,112190.0,112180.0,0.22098335]
[1757340741208,0.189209,112190.0,112180.0,0.39926824]
[1757340741341,0.189209,112190.0,112180.0,0.22098335]
[1757340742180,0.189209,112190.0,112180.0,0.31289934]
[1757340742326,0.189209,112190.0,112180.0,0.49118423]
[1757340742518,0.189209,112190.0,112180.0,0.31289934]
[1757340742743,0.189209,112190.0,112180.0,0.16077934]
[1757340742932,0.189209,112190.0,112180.0,0.31285934]
[1757340743663,0.189209,112190.0,112180.0,0.49114423]
[1757340746187,0.56471336,112190.0,112180.0,0.31285934]
[1757340746391,0.54963638,112190.0,112180.0,0.06886335]
[1757340746613,0.91006376,112190.0,112180.0,0.22094335]
[1757340747029,0.189209,112190.0,112180.0,0.22094335]
[1757340747253,0.91006376,112190.0,112180.0,0.06886335]
[1757340747471,0.92668888,112190.0,112180.0,0.22094335]